Workbook

Sheet Title
B4: Dr. Larry's
B10: Feed Need Program 3.0.22
B12: Folllow the steps in the instructions to see how much feed your birds are predicted to eat
I15: Gene M. Pesti
I16: Poultry Hub Australia
I17: The University of New England

Sheet Instructions

Sheet Input Output 1
A1: First, input data that has feed consumption as a function of age in cells C6 to D18.
A2: Second, transfer the coefficients from the graph to cells 026 to O29:
A3: Third, enter your variables in L7 to L11:
A4: Forth, Read your feed needs in cells N15 to N21
C7: Age (Days) | D7: Cumulative Consumption | F7: Predicted | H7: % Error | L7: 0 | M7: Age at Start (Days)
L8: 42 | M8: Age at End (Days) | AC8: First | AD8: Second | AE8: Diff
C9: 0 | D9: 0 | F9: =IF(C9="","",O$26+O$27*C9+O$28*C9^2+O$29*C9^3) -> 27.63636364 | L9: 12 | M9: Pens on the Feed | AC9: Cons | AD9: Cons
C10: =C9+7 -> 7 | D10: 166 | F10: 123.4393957 | H10: =100-(F10/D10)*100 -> 25.63891828 | L10: 42 | M10: Birds per Pen | AB10: ='Input Output 1'!$O$26 -> 27.63636364 | AC10: =AB10+AB11*L7+AB12*L7^2+AB13*L7^3 -> 27.63636364 | AD10: =AB10+AB11*L8+AB12*L8^2+AB13*L8^3 -> 4562.444058 | AE10: =AD10-AC10 -> 4534.807695
C11: =C10+7 -> 14 | D11: 535 | F11: 513.8679783 | H11: 3.949910594 | L11: 10 | M11: % Margin of Safety | AB11: ='Input Output 1'!$O$27 -> -8.45232942
C12: 21 | D12: 1155 | F12: 1175.952424 | H12: -1.814062666 | AB12: ='Input Output 1'!$O$28 -> 3.24076774
C13: 28 | D13: 2051 | F13: 2086.723044 | H13: -1.741737894 | K13: And your feed needs are: | AB13: ='Input Output 1'!$O$29 -> -0.01116117
C14: 35 | D14: 3211 | F14: 3223.210152 | H14: -0.3802600962
C15: 42 | D15: 4586 | F15: 4562.444058 | H15: 0.5136489664 | L15: In Grams = | N15: =AE10*L9*L10*(1+L11*0.01) -> 2514097.386 | AC15: =C8 -> 0 | AF15: =D8 -> 0
C16: 49 | D16: 6115 | F16: 6081.455076 | H16: 0.5485678419 | L16: In Kilograms = | N16: =N15/1000 -> 2514.097386 | AB16: 1 | AC16: =IF(C9="","",C9) -> 0 | AD16: =IF(C9="","",C9^2) -> 0 | AE16: =IF(C9="","",C9^3) -> 0 | AF16: =IF(D9="","",D9) -> 0
C17: 56 | D17: 7733 | F17: 7757.273518 | H17: -0.3138952288 | L17: In Metric Tons = | N17: =N16/1000 -> 2.514097386 | AB17: 2 | AC17: 7 | AD17: 49 | AE17: 343 | AF17: 166
AB18: 3 | AC18: 14 | AD18: 196 | AE18: 2744 | AF18: 535
L19: In Pounds = | N19: =N15/454 -> 5537.65944 | AB19: 4 | AC19: 21 | AD19: 441 | AE19: 9261 | AF19: 1155
L20: In Imperial Tons = | N20: =N19/2000 -> 2.76882972 | AB20: 5 | AC20: 28 | AD20: 784 | AE20: 21952 | AF20: 2051
L21: In Stones = | N21: =N19/14 -> 395.5471029 | AB21: 6 | AC21: 35 | AD21: 1225 | AE21: 42875 | AF21: 3211
AB22: 7 | AC22: 42 | AD22: 1764 | AE22: 74088 | AF22: 4586
AB23: 8 | AC23: 49 | AD23: 2401 | AE23: 117649 | AF23: 6115
AB24: 9 | AC24: 56 | AD24: 3136 | AE24: 175616 | AF24: 7733
O25: Coefficients
N26: Intercept | O26: 27.63636364
N27: X | O27: -8.45232942
N28: X2 | O28: 3.24076774
N29: X3 | O29: -0.01116117
X48: =IF(C18="","",C18) ->  | Y48: =IF(C18="","",C18^2) ->  | Z48: =IF(C18="","",C18^3) ->  | AA48: =IF(D18="","",D18) -> 

Sheet Input Output 2
A1: First, input data that has feed consumption as a function of age in cells C6 to D18.
A2: Second, transfer the coefficients from the graph to cells 026 to O29:
A3: Third, enter your variables in L7 to L11:
A4: Forth, Read your feed needs in cells N15 to N21
C7: Age (Days) | D7: Cumulative Consumption | F7: Predicted | H7: % Error | L7: 0 | M7: Age at Start (Days)
L8: 18 | M8: Age at End (Days) | AC8: First | AD8: Second | AE8: Diff
C9: 0 | D9: 0 | F9: =IF(C9="","",O$26+O$27*C9+O$28*C9^2+O$29*C9^3) -> -0.34615385 | L9: 12 | M9: Pens on the Feed | AC9: Cons | AD9: Cons
C10: 2 | D10: 12 | F10: 12.20879121 | H10: =100-(F10/D10)*100 -> -1.73992675 | L10: 42 | M10: Birds per Pen | AB10: ='Input Output 2'!$O$26 -> -0.34615385 | AC10: =AB10+AB11*L7+AB12*L7^2+AB13*L7^3 -> -0.34615385 | AD10: =AB10+AB11*L8+AB12*L8^2+AB13*L8^3 -> 249.311687 | AE10: =AD10-AC10 -> 249.6578409
C11: 4 | D11: 28 | F11: 28.38861139 | H11: -1.387897821 | L11: 10 | M11: % Margin of Safety | AB11: ='Input Output 2'!$O$27 -> 5.38349151
C12: 6 | D12: 48 | F12: 48.26673325 | H12: -0.5556942708 | AB12: ='Input Output 2'!$O$28 -> 0.44393107
C13: 8 | D13: 72 | F13: 71.91658335 | H13: 0.1158564583 | K13: And your feed needs are: | AB13: ='Input Output 2'!$O$29 -> 0.00152972
C14: 10 | D14: 100 | F14: 99.41158825 | H14: 0.58841175
C15: 12 | D15: 131 | F15: 130.8251745 | H15: 0.1334545725 | L15: In Grams = | N15: =AE10*L9*L10*(1+L11*0.01) -> 138410.307 | AC15: =C8 -> 0 | AF15: =D8 -> 0
C16: 14 | D16: 166 | F16: 166.2307687 | H16: -0.1390172831 | L16: In Kilograms = | N16: =N15/1000 -> 138.410307 | AB16: 1 | AC16: =IF(C9="","",C9) -> 0 | AD16: =IF(C9="","",C9^2) -> 0 | AE16: =IF(C9="","",C9^3) -> 0 | AF16: =IF(D9="","",D9) -> 0
C17: 16 | D17: 206 | F17: 205.7017973 | H17: 0.144758568 | L17: In Metric Tons = | N17: =N16/1000 -> 0.138410307 | AB17: 2 | AC17: 2 | AD17: 4 | AE17: 8 | AF17: 12
C18: 18 | D18: 249 | F18: =IF(C18="","",O$26+O$27*C18+O$28*C18^2+O$29*C18^3) -> 249.311687 | H18: =100-(F18/D18)*100 -> -0.1251755221 | AB18: 3 | AC18: 4 | AD18: 16 | AE18: 64 | AF18: 28
C19: 20 | D19: 297 | F19: 297.1338643 | H19: -0.04507217172 | L19: In Pounds = | N19: =N15/454 -> 304.8685176 | AB19: 4 | AC19: 6 | AD19: 36 | AE19: 216 | AF19: 48
C20: 22 | D20: 349 | F20: 349.2417558 | H20: -0.06927100573 | L20: In Imperial Tons = | N20: =N19/2000 -> 0.1524342588 | AB20: 5 | AC20: 8 | AD20: 64 | AE20: 512 | AF20: 72
C21: 24 | D21: 406 | F21: 405.708788 | H21: 0.07172709606 | L21: In Stones = | N21: =N19/14 -> 21.77632269 | AB21: 6 | AC21: 10 | AD21: 100 | AE21: 1000 | AF21: 100
AB22: 7 | AC22: 12 | AD22: 144 | AE22: 1728 | AF22: 131
AB23: 8 | AC23: 14 | AD23: 196 | AE23: 2744 | AF23: 166
AB24: 9 | AC24: 16 | AD24: 256 | AE24: 4096 | AF24: 206
O25: Coefficients
N26: Intercept | O26: -0.34615385
N27: X | O27: 5.38349151
N28: X2 | O28: 0.44393107
N29: X3 | O29: 0.00152972
X48: =IF(C18="","",C18) -> 18 | Y48: =IF(C18="","",C18^2) -> 324 | Z48: =IF(C18="","",C18^3) -> 5832 | AA48: =IF(D18="","",D18) -> 249

Sheet Other Data
C5: ROSS 308 & 308 FF Performance Objectives 2022
D8: Age (Days) | E8: Straight Run | F8: Male | G8: Female
D10: 0 | E10: 0 | F10: 0 | G10: 0
D11: =D10+7 -> 7 | E11: 166 | F11: 161 | G11: 171
D12: =D11+7 -> 14 | E12: 535 | F12: 542 | G12: 529
D13: 21 | E13: 1155 | F13: 1193 | G13: 1117
D14: 28 | E14: 2051 | F14: 2147 | G14: 1956
D15: 35 | E15: 3211 | F15: 3394 | G15: 3028
D16: 42 | E16: 4586 | F16: 4886 | G16: 4286
D17: 49 | E17: 6115 | F17: 6556 | G17: 5674
D18: 56 | E18: 7733 | F18: 8332 | G18: 7133
D21: Age (Days) | E21: Straight Run | F21: Male | G21: Female
D23: 0 | E23: 0 | F23: 0 | G23: 0
D24: 2 | E24: 12 | F24: 11 | G24: 13
D25: 4 | E25: 28 | F25: 26 | G25: 31
D26: 6 | E26: 48 | F26: 45 | G26: 52
D27: 8 | E27: 72 | F27: 68 | G27: 76
D28: 10 | E28: 100 | F28: 95 | G28: 104
D29: 12 | E29: 131 | F29: 126 | G29: 136
D30: 14 | E30: 166 | F30: 161 | G30: 171
D31: 16 | E31: 206 | F31: 201 | G31: 210
D32: 18 | E32: 249 | F32: 245 | G32: 253
D33: 20 | E33: 297 | F33: 295 | G33: 299
D34: 22 | E34: 349 | F34: 348 | G34: 350
D35: 24 | E35: 406 | F35: 408 | G35: 405
C39: From the Arbor Acres Classic Broiler Standards
C40: for 2000 Management Guide:
D42: Age (Days) | E42: Straight Run | F42: Male | G42: Female
D44: 0 | E44: 0 | F44: 0 | G44: 0
D45: =D44+7 -> 7 | E45: 149 | F45: 153 | G45: 146
D46: =D45+7 -> 14 | E46: 471 | F46: 484 | G46: 458
D47: 21 | E47: 986 | F47: 1032 | G47: 939
D48: 28 | E48: 1750 | F48: 1829 | G48: 1669
D49: 35 | E49: 2761 | F49: 2911 | G49: 2606
D50: 42 | E50: 4074 | F50: 4337 | G50: 3804
D51: 49 | E51: 5586 | F51: 5949 | G51: 5236
